lending/lending_fUSD_20241229
["ID","MTS","AMOUNT","RATE_DAILY","PERIOD"]
[347109792,1735501864860,-500.0,0.00017377,2]
[347109793,1735501864870,-500.0,0.00017377,2]
[347109794,1735501864879,-500.0,0.00017377,2]
[347109795,1735501864888,-500.0,0.00017377,2]
[347109796,1735501864898,-500.0,0.00017377,2]
[347109797,1735501864907,-500.0,0.00017377,2]
[347109798,1735501864916,-500.0,0.00017377,2]
[347109799,1735501864926,-500.0,0.00017377,2]
[347109800,1735501864935,-2369.92,0.00017377,2]
[347109801,1735501864944,-500.0,0.00017377,2]
[347109802,1735501864956,-635.05,0.00017377,2]
[347109803,1735501864965,-551.41,0.00017377,2]
[347109804,1735501864974,-500.0,0.00017377,2]
[347109805,1735501864984,-500.0,0.00017377,2]
[347109806,1735501864994,-500.0,0.00017377,2]
[347109807,1735501865003,-500.0,0.00017377,2]
[347109808,1735501865013,-527.26598748,0.00017377,2]
[347109809,1735501865022,-583.56,0.00017377,2]
[347109810,1735501865031,-500.0,0.00017377,2]
[347109811,1735501865040,-500.0,0.00017377,2]
[347109812,1735501865049,-500.0,0.00017377,2]
[347109813,1735501865058,-500.0,0.00017377,2]
[347109814,1735501865068,-500.0,0.00017377,2]
[347109815,1735501865077,-500.0,0.00017377,2]
[347109816,1735501865086,-705.51,0.00017377,2]
[347109817,1735501865096,-501.86,0.00017377,2]
[347109818,1735501865107,-500.0,0.00017377,2]
[347109819,1735501865117,-3016.44,0.00017377,2]
[347109820,1735501865126,-500.0,0.00017377,2]
[347109821,1735501865136,-500.0,0.00017377,2]
[347109822,1735501865145,-965.04,0.00017377,2]
[347109823,1735501865154,-500.0,0.00017377,2]
[347109824,1735501865164,-644.59,0.00017377,2]
[347109825,1735501865174,-687.22,0.00017377,2]
[347109826,1735501865184,-500.0,0.00017377,2]
[347109827,1735501865193,-500.0,0.00017377,2]
[347109828,1735501865204,-500.0,0.00017377,2]
[347109829,1735501865214,-500.0,0.00017377,2]
[347109830,1735501865226,-2182.7,0.00017377,2]
[347109831,1735501865235,-886.22,0.00017377,2]
[347109832,1735501865245,-500.0,0.00017377,2]
[347109833,1735501865254,-1103.62,0.00017377,2]
[347109834,1735501865263,-500.0,0.00017377,2]
[347109835,1735501865273,-500.0,0.00017377,2]
[347109836,1735501865283,-500.0,0.00017377,2]
[347109837,1735501865293,-503.61,0.00017377,2]
[347109838,1735501865303,-159.59,0.00017377,2]
[347109839,1735501865313,-1816.86,0.00017377,2]
[347109840,1735501865323,-500.0,0.00017377,2]
[347109841,1735501865333,-500.0,0.00017377,2]
[347109842,1735501865343,-500.0,0.00017377,2]
[347109843,1735501865353,-500.0,0.00017378,2]
[347109844,1735501865362,-500.0,0.00017378,2]
[347109845,1735501865372,-620.35,0.00017378,2]
[347109846,1735501865382,-500.0,0.00017378,2]
[347109847,1735501865392,-532.93,0.00017378,2]
[347109848,1735501865401,-484.21,0.00017378,2]
[347109849,1735501865411,-482.9,0.00017378,2]
[347109850,1735501865421,-641.92,0.00017378,2]
[347109851,1735501865431,-500.0,0.00017378,2]
[347109852,1735501865441,-500.0,0.00017378,2]
[347109853,1735501865450,-172.56,0.00017378,2]
[347109854,1735501865459,-235.38,0.00017378,2]
[347109855,1735501865471,-500.0,0.00017378,2]
[347109856,1735501865480,-500.0,0.00017378,2]
[347109857,1735501865491,-500.0,0.00017378,2]
[347109858,1735501865501,-593.1,0.00017378,2]
[347109859,1735501865510,-500.0,0.00017378,2]
[347109860,1735501865520,-500.0,0.00017378,2]
[347109861,1735501865529,-211.58,0.00017378,2]
[347109862,1735501865539,-36819.0,0.00017399,2]
[347109863,1735501865548,-500.0,0.00017399,2]
[347109864,1735501865558,-500.0,0.00017399,2]
[347109865,1735501865567,-500.0,0.00017399,2]
[347109866,1735501865576,-423.1,0.00017399,2]
[347109867,1735501865585,-500.0,0.00017399,2]
[347109868,1735501865595,-7500.0,0.00017399,2]
[347109869,1735501865604,-5088.81,0.00017399,2]
[347109870,1735501865617,-195935.36621761,0.000174,2]
[347109871,1735501865627,-2697.20847,0.000174,2]
[347109872,1735501865636,-578.0,0.00017452,2]
[347109873,1735501865645,-249.85,0.00017452,2]
[347109874,1735501865655,-499.06,0.00017452,2]
[347109875,1735501865664,-500.0,0.00017452,2]
[347109876,1735501865674,-635.14,0.00017452,2]
[347109877,1735501865683,-500.0,0.00017452,2]
[347109878,1735501865693,-500.0,0.00017452,2]
[347109879,1735501865703,-500.0,0.00017452,2]
[347109880,1735501865841,-500.0,0.00017452,2]
[347109881,1735501865851,-500.0,0.00017452,2]
[347109882,1735501865861,-499.34,0.00017452,2]
[347109883,1735501865871,-502.39,0.00017452,2]
[347109884,1735501865881,-500.0,0.00017452,2]
[347109885,1735501865890,-500.0,0.00017452,2]
[347109886,1735501865900,-506.94,0.00017452,2]
[347109887,1735501865910,-553.79,0.00017452,2]
[347109888,1735501865919,-500.0,0.00017452,2]
[347109889,1735501865929,-500.0,0.00017452,2]
[347109890,1735501865938,-500.0,0.00017452,2]
[347109891,1735501865947,-500.0,0.00017452,2]
[347109892,1735501865958,-500.0,0.00017452,2]
[347109893,1735501865968,-500.0,0.00017452,2]
[347109894,1735501865979,-500.0,0.00017452,2]
[347109895,1735501865989,-503.87,0.00017452,2]
[347109896,1735501865999,-500.0,0.00017452,2]
[347109897,1735501866009,-500.0,0.00017452,2]
[347109898,1735501866019,-500.0,0.00017452,2]
[347109899,1735501866029,-500.0,0.00017452,2]
[347109900,1735501866039,-314.13,0.00017452,2]
[347109901,1735501866048,-500.0,0.00017452,2]
[347109902,1735501866058,-500.0,0.00017452,2]
[347109903,1735501866068,-500.0,0.00017452,2]
[347109904,1735501866077,-500.0,0.00017452,2]
[347109905,1735501866087,-500.0,0.00017452,2]
[347109906,1735501866097,-500.0,0.00017452,2]
[347109907,1735501866106,-500.0,0.00017452,2]
[347109908,1735501866116,-500.0,0.00017452,2]
[347109909,1735501866126,-500.0,0.00017452,2]
[347109910,1735501866136,-500.0,0.00017452,2]
[347109911,1735501866145,-500.0,0.00017452,2]
[347109912,1735501866156,-500.0,0.00017452,2]
[347109913,1735501866165,-632.63,0.00017452,2]
[347109914,1735501866174,-500.0,0.00017452,2]
[347109915,1735501866184,-500.0,0.00017452,2]
[347109916,1735501866193,-754.31,0.00017452,2]
[347109917,1735501866204,-500.0,0.00017452,2]
[347109918,1735501866215,-500.0,0.00017452,2]
[347109919,1735501866225,-606.97,0.00017452,2]
[347109920,1735501866234,-500.0,0.00017452,2]
[347109921,1735501866244,-500.0,0.00017452,2]
[347109922,1735501866254,-500.0,0.00017452,2]
[347109923,1735501866264,-500.0,0.00017452,2]
[347109924,1735501866274,-500.0,0.00017452,2]
[347109925,1735501866284,-500.0,0.00017452,2]
[347109926,1735501866293,-500.0,0.00017452,2]
[347109927,1735501866303,-500.0,0.00017452,2]
[347109928,1735501866313,-500.0,0.00017452,2]
[347109929,1735501866322,-453.17,0.00017452,2]
[347109930,1735501866332,-500.0,0.00017452,2]
[347109931,1735501866342,-500.0,0.00017452,2]
[347109932,1735501866352,-500.0,0.00017452,2]
[347109933,1735501866362,-500.0,0.00017452,2]
[347109934,1735501866372,-500.0,0.00017452,2]
[347109935,1735501866382,-223.79,0.00017452,2]
[347109936,1735501866391,-500.0,0.00017452,2]
[347109937,1735501866401,-500.0,0.00017452,2]
[347109938,1735501866411,-500.0,0.00017452,2]
[347109939,1735501866421,-500.0,0.00017452,2]
[347109940,1735501866431,-403.6,0.00017452,2]
[347109941,1735501866441,-500.0,0.00017452,2]
[347109942,1735501866451,-500.0,0.00017452,2]
[347109943,1735501866461,-500.0,0.00017452,2]
[347109944,1735501866471,-500.0,0.00017452,2]
[347109945,1735501866481,-500.0,0.00017452,2]
[347109946,1735501866491,-500.0,0.00017452,2]
[347109947,1735501866501,-500.0,0.00017452,2]
[347109948,1735501866511,-500.0,0.00017452,2]
[347109949,1735501866521,-500.0,0.00017452,2]
[347109950,1735501866530,-500.0,0.00017452,2]
[347109951,1735501866540,-500.0,0.00017452,2]
[347109952,1735501866550,-500.0,0.00017452,2]
[347109953,1735501866560,-500.0,0.00017452,2]
[347109954,1735501866569,-500.0,0.00017452,2]
[347109955,1735501866579,-500.0,0.00017452,2]
[347109956,1735501866589,-38292.16,0.00017453,2]
[347109957,1735501866599,-1814.14,0.00017453,2]
[347109958,1735501866610,-500.0,0.00017453,2]
[347109959,1735501866621,-256.376846,0.00017453,2]
[347109960,1735501866631,-223.804878,0.00017453,2]
[347109961,1735501866641,-500.0,0.00017453,2]
[347109962,1735501866650,-500.0,0.00017453,2]
[347109963,1735501866660,-2173.53,0.00017453,2]
[347109964,1735501866670,-500.0,0.00017453,2]
[347109965,1735501866680,-172.842739,0.00017453,2]
[347109966,1735501866690,-151.764506,0.00017453,2]
[347109967,1735501866701,-516.95,0.00017453,2]
[347109968,1735501866711,-500.0,0.00017453,2]
[347109969,1735501866721,-538.76,0.00017453,2]
[347109970,1735501866730,-500.0,0.00017453,2]
[347109971,1735501866739,-172.842739,0.00017453,2]
[347109972,1735501866748,-151.764505,0.00017453,2]
[347109973,1735501866758,-500.0,0.00017453,2]
[347109974,1735501866768,-1499.28,0.00017453,2]
[347109975,1735501866778,-500.0,0.00017453,2]
[347109976,1735501866788,-186.97,0.00017454,2]
[347109977,1735501866798,-625.52,0.00017454,2]
[347109978,1735501866808,-381.48,0.00017454,2]
[347109979,1735501866818,-262.96,0.00017454,2]
[347109980,1735501866828,-500.0,0.00017454,2]
[347109981,1735501866837,-500.0,0.00017454,2]
[347109982,1735501866847,-500.0,0.00017454,2]
[347109983,1735501866856,-500.0,0.00017454,2]
[347109984,1735501866866,-500.0,0.00017454,2]
[347109985,1735501866876,-500.0,0.00017454,2]
[347109986,1735501866886,-500.0,0.00017454,2]
[347109987,1735501866895,-500.0,0.00017454,2]
[347109988,1735501866904,-304.53,0.00017454,2]
[347109989,1735501866914,-500.0,0.00017454,2]
[347109990,1735501866923,-500.0,0.00017454,2]
[347109991,1735501866933,-458.78,0.00017454,2]
[347109992,1735501866942,-500.0,0.00017454,2]
[347109993,1735501866952,-500.0,0.00017454,2]
[347109994,1735501866962,-500.0,0.00017454,2]
[347109995,1735501866971,-500.0,0.00017454,2]
[347109996,1735501866981,-500.0,0.00017454,2]
[347109997,1735501866991,-500.0,0.00017454,2]
[347109998,1735501867001,-500.0,0.00017454,2]
[347109999,1735501867010,-506.37,0.00017454,2]
[347110000,1735501867020,-500.0,0.00017454,2]
[347110001,1735501867030,-500.0,0.00017454,2]
[347110002,1735501867039,-500.0,0.00017454,2]
[347110003,1735501867048,-500.0,0.00017454,2]
[347110004,1735501867058,-500.0,0.00017454,2]
[347110005,1735501867067,-500.0,0.00017454,2]
[347110006,1735501867076,-1311.98,0.00017454,2]
[347110007,1735501867086,-500.0,0.00017454,2]
[347110008,1735501867096,-500.0,0.00017454,2]
[347110009,1735501867105,-500.0,0.00017454,2]
[347110010,1735501867114,-500.0,0.00017454,2]
[347110011,1735501867124,-500.0,0.00017454,2]
[347110012,1735501867133,-500.0,0.00017454,2]
[347110013,1735501867143,-500.0,0.00017454,2]
[347110014,1735501867153,-500.0,0.00017454,2]
[347110015,1735501867162,-500.0,0.00017454,2]
[347110016,1735501867172,-500.0,0.00017454,2]
[347110017,1735501867181,-581.04,0.00017454,2]
[347110018,1735501867191,-1093.12,0.00017454,2]
[347110019,1735501867200,-500.0,0.00017454,2]
[347110020,1735501867210,-500.0,0.00017454,2]
[347110021,1735501867220,-500.0,0.00017456,2]
[347110022,1735501867229,-500.0,0.00017456,2]
[347110023,1735501867239,-400.82,0.00017456,2]
[347110024,1735501867248,-411.41,0.00017456,2]
[347110025,1735501867257,-500.0,0.00017456,2]
[347110026,1735501867267,-609.96,0.00017456,2]
[347110027,1735501867276,-1966.04,0.00017456,2]
[347110028,1735501867285,-500.0,0.00017456,2]
[347110029,1735501867294,-355.48,0.00017456,2]
[347110030,1735501867304,-500.0,0.00017456,2]
[347110031,1735501867314,-2075.34,0.00017456,2]
[347110032,1735501867324,-500.0,0.00017456,2]
[347110033,1735501867333,-500.0,0.00017456,2]
[347110034,1735501867342,-500.0,0.00017456,2]
[347110035,1735501867352,-567.22,0.00017456,2]
[347110036,1735501867361,-500.0,0.00017456,2]
[347110037,1735501867371,-500.0,0.00017456,2]
[347110038,1735501867380,-634.86,0.00017456,2]
[347110039,1735501867390,-796.83,0.00017456,2]
[347110040,1735501867399,-435.15,0.00017479,2]
[347110041,1735501867408,-1870.0,0.00017499,2]
[347110042,1735501867418,-500.0,0.00017508,7]
[347110043,1735501867427,-564.16,0.00017508,7]
[347110044,1735501867437,-881.9673773,0.00017521,2]
[347110045,1735501867446,-154.39,0.00017534,2]
[347110046,1735501867456,-447.37,0.0001765,2]
[347110047,1735501867466,-357.61,0.0001765,2]
[347110048,1735501867475,-500.0,0.0001765,2]
[347110049,1735501867484,-500.0,0.0001765,2]
[347110050,1735501867494,-500.0,0.00017651,2]
[347110051,1735501867503,-648.59,0.00017651,2]
[347110052,1735501867512,-427.52,0.00017651,2]
[347110053,1735501867522,-500.0,0.00017651,2]
[347110054,1735501867531,-520.88,0.00017651,2]
[347110055,1735501867539,-500.0,0.00017651,2]
[347110056,1735501867549,-614.18,0.00017651,2]
[347110057,1735501867558,-500.0,0.00017651,2]
[347110058,1735501867567,-500.0,0.00017651,2]
[347110059,1735501867576,-500.0,0.00017651,2]
[347110060,1735501867586,-500.0,0.00017651,2]
[347110061,1735501867595,-500.0,0.00017651,2]
[347110062,1735501867605,-2108.31,0.00017651,2]
[347110063,1735501867617,-500.0,0.00017651,2]
[347110064,1735501867627,-294.75,0.00017651,2]
[347110065,1735501867636,-500.0,0.00017651,2]
[347110066,1735501867645,-209.5,0.00017651,2]
[347110067,1735501867654,-157.12536469,0.00017651,2]
[347110068,1735501867663,-500.0,0.00017651,2]
[347110069,1735501867673,-603.52,0.00017651,2]
[347110070,1735501867684,-500.0,0.00017651,2]
[347110071,1735501867694,-500.0,0.00017651,2]
[347110072,1735501867703,-477.41,0.00017651,2]
[347110073,1735501867713,-306.8,0.00017651,2]
[347110074,1735501867722,-500.0,0.00017651,2]
[347110075,1735501867731,-841.79,0.00017651,2]
[347110076,1735501867740,-500.0,0.00017651,2]
[347110077,1735501867749,-500.0,0.00017651,2]
[347110078,1735501867759,-500.0,0.00017651,2]
[347110079,1735501867769,-500.0,0.00017651,2]
[347110080,1735501867778,-500.0,0.00017651,2]
[347110081,1735501867788,-500.0,0.00017651,2]
[347110082,1735501867797,-500.0,0.00017651,2]
[347110083,1735501867807,-500.0,0.00017651,2]
[347110084,1735501867816,-500.0,0.00017651,2]
[347110085,1735501867826,-1480.24,0.00017651,2]
[347110086,1735501867836,-500.0,0.00017651,2]
[347110087,1735501867845,-500.0,0.00017651,2]
[347110088,1735501867855,-500.0,0.00017651,2]
[347110089,1735501867865,-500.0,0.00017651,2]
[347110090,1735501867874,-159.74,0.00017651,2]
[347110091,1735501867884,-500.0,0.00017651,2]
[347110092,1735501867894,-500.0,0.00017651,2]
[347110093,1735501867903,-500.0,0.00017651,2]
[347110094,1735501867913,-500.0,0.00017651,2]
[347110095,1735501867923,-500.0,0.00017651,2]
[347110096,1735501867932,-651.63,0.00017651,2]
[347110097,1735501867941,-500.0,0.00017651,2]
[347110098,1735501867951,-500.0,0.00017651,2]
[347110099,1735501867961,-250.98,0.00017651,2]
[347110100,1735501867970,-500.0,0.00017651,2]
[347110101,1735501867980,-500.0,0.00017651,2]
[347110102,1735501867990,-500.0,0.00017651,2]
[347110103,1735501868000,-178.94,0.00017651,2]
[347110104,1735501868010,-500.0,0.00017651,2]
[347110105,1735501868019,-500.0,0.00017651,2]
[347110106,1735501868029,-500.0,0.00017651,2]
[347110107,1735501868038,-214.32,0.00017651,2]
[347110108,1735501868047,-500.0,0.00017651,2]
[347110109,1735501868057,-597.26,0.00017651,2]
[347110110,1735501868067,-500.0,0.00017651,2]
[347110111,1735501868076,-2369.92,0.00017651,2]
[347110112,1735501868086,-500.0,0.00017651,2]
[347110113,1735501868096,-635.05,0.00017651,2]
[347110114,1735501868106,-500.0,0.00017651,2]
[347110115,1735501868115,-500.0,0.00017651,2]
[347110116,1735501868124,-583.56,0.00017651,2]
[347110117,1735501868257,-500.0,0.00017651,2]
[347110118,1735501868267,-500.0,0.00017651,2]
[347110119,1735501868276,-500.0,0.00017651,2]
[347110120,1735501868286,-500.0,0.00017651,2]
[347110121,1735501868296,-500.0,0.00017651,2]
[347110122,1735501868305,-705.51,0.00017651,2]
[347110123,1735501868315,-501.86,0.00017651,2]
[347110124,1735501868325,-500.0,0.00017651,2]
[347110125,1735501868334,-3016.44,0.00017651,2]
[347110126,1735501868345,-373.97,0.00017651,2]
[347110127,1735501868354,-500.0,0.00017651,2]
[347110128,1735501868364,-965.04,0.00017651,2]
[347110129,1735501868373,-500.0,0.00017651,2]
[347110130,1735501868383,-687.22,0.00017651,2]
[347110131,1735501868393,-500.0,0.00017651,2]
[347110132,1735501868403,-500.0,0.00017651,2]
[347110133,1735501868413,-240.79665458,0.00017651,2]
[347110134,1735501868423,-500.0,0.00017651,2]
[347110135,1735501868433,-2182.7,0.00017651,2]
[347110136,1735501868442,-500.0,0.00017651,2]
[347110137,1735501868453,-886.22,0.00017651,2]
[347110138,1735501868462,-1103.62,0.00017651,2]
[347110139,1735501868471,-500.0,0.00017651,2]
[347110140,1735501868481,-500.0,0.00017651,2]
[347110141,1735501868491,-500.0,0.00017651,2]
[347110142,1735501868500,-1816.86,0.00017651,2]
[347110143,1735501868509,-500.0,0.00017651,2]
[347110144,1735501868519,-500.0,0.00017651,2]
[347110145,1735501868529,-500.0,0.00017651,2]
[347110146,1735501868538,-500.0,0.00017652,2]
[347110147,1735501868548,-500.0,0.00017652,2]
[347110148,1735501868558,-413.36,0.00017652,2]
[347110149,1735501868568,-436.3,0.00017652,2]
[347110150,1735501868578,-461.8,0.00017652,2]
[347110151,1735501868588,-500.0,0.00017652,2]
[347110152,1735501868598,-424.52,0.00017652,2]
[347110153,1735501868609,-500.0,0.00017652,2]
[347110154,1735501868620,-500.0,0.00017652,2]
[347110155,1735501868630,-500.0,0.00017652,2]
[347110156,1735501868640,-633.79,0.00017654,2]
[347110157,1735501868650,-5088.81,0.00017673,2]
[347110158,1735501868659,-1870.0,0.00017679,2]
[347110159,1735501868670,-771.25,0.00017682,2]
[347110160,1735501868679,-31116.76625119,0.000177,2]
[347110161,1735501868689,-389.99,0.00017726,2]
[347110162,1735501868698,-306.21,0.00017726,2]
[347110163,1735501868708,-500.0,0.00017726,2]
[347110164,1735501868718,-644.45,0.00017726,2]
[347110165,1735501868727,-500.0,0.00017726,2]
[347110166,1735501868736,-259.68,0.00017726,2]
[347110167,1735501868745,-500.0,0.00017726,2]
[347110168,1735501868755,-500.0,0.00017726,2]
[347110169,1735501868764,-500.0,0.00017726,2]
[347110170,1735501868773,-500.0,0.00017726,2]
[347110171,1735501868782,-500.0,0.00017726,2]
[347110172,1735501868792,-342.04,0.00017726,2]
[347110173,1735501868801,-500.0,0.00017726,2]
[347110174,1735501868810,-494.38,0.00017726,2]
[347110175,1735501868820,-500.0,0.00017726,2]
[347110176,1735501868829,-580.14,0.00017726,2]
[347110177,1735501868838,-500.0,0.00017726,2]
[347110178,1735501868848,-249.55,0.00017726,2]
[347110179,1735501868858,-352.73,0.00017726,2]
[347110180,1735501868867,-458.64,0.00017726,2]
[347110181,1735501868876,-500.0,0.00017726,2]
[347110182,1735501868885,-500.0,0.00017726,2]
[347110183,1735501868895,-500.0,0.00017726,2]
[347110184,1735501868905,-500.0,0.00017726,2]
[347110185,1735501868915,-500.0,0.00017726,2]
[347110186,1735501868924,-500.0,0.00017726,2]
[347110187,1735501868934,-500.0,0.00017726,2]
[347110188,1735501868943,-500.0,0.00017726,2]
[347110189,1735501868955,-500.0,0.00017726,2]
[347110190,1735501868965,-500.0,0.00017726,2]
[347110191,1735501868974,-500.0,0.00017726,2]
[347110192,1735501868984,-500.0,0.00017726,2]
[347110193,1735501868994,-754.31,0.00017726,2]
[347110194,1735501869003,-500.0,0.00017726,2]
[347110195,1735501869013,-500.0,0.00017726,2]
[347110196,1735501869022,-606.97,0.00017726,2]
[347110197,1735501869032,-594.73,0.00017726,2]
[347110198,1735501869041,-500.0,0.00017726,2]
[347110199,1735501869050,-500.0,0.00017726,2]
[347110200,1735501869060,-500.0,0.00017726,2]
[347110201,1735501869069,-500.0,0.00017726,2]
[347110202,1735501869079,-500.0,0.00017726,2]
[347110203,1735501869088,-258.12,0.00017726,2]
[347110204,1735501869097,-500.0,0.00017726,2]
[347110205,1735501869107,-191.04,0.00017726,2]
[347110206,1735501869116,-490.31,0.00017726,2]
[347110207,1735501869125,-500.0,0.00017726,2]
[347110208,1735501869135,-574.35,0.00017726,2]
[347110209,1735501869145,-500.0,0.00017726,2]
[347110210,1735501869155,-404.74,0.00017726,2]
[347110211,1735501869164,-505.82,0.00017726,2]
[347110212,1735501869173,-500.0,0.00017726,2]
[347110213,1735501869182,-500.0,0.00017726,2]
[347110214,1735501869192,-500.0,0.00017726,2]
[347110215,1735501869201,-500.0,0.00017726,2]
[347110216,1735501869211,-356.2,0.00017726,2]
[347110217,1735501869221,-500.0,0.00017726,2]
[347110218,1735501869231,-500.0,0.00017726,2]
[347110219,1735501869240,-500.0,0.00017726,2]
[347110220,1735501869249,-500.0,0.00017726,2]
[347110221,1735501869259,-500.0,0.00017726,2]
[347110222,1735501869268,-500.0,0.00017726,2]
[347110223,1735501869278,-500.0,0.00017726,2]
[347110224,1735501869287,-500.0,0.00017726,2]
[347110225,1735501869297,-500.0,0.00017726,2]
[347110226,1735501869306,-500.0,0.00017726,2]
[347110227,1735501869315,-500.0,0.00017726,2]
[347110228,1735501869325,-500.0,0.00017726,2]
[347110229,1735501869334,-533.44,0.00017726,2]
[347110230,1735501869343,-1814.14,0.00017727,2]
[347110231,1735501869353,-500.0,0.00017727,2]
[347110232,1735501869362,-256.376846,0.00017727,2]
[347110233,1735501869372,-223.804878,0.00017727,2]
[347110234,1735501869381,-500.0,0.00017727,2]
[347110235,1735501869391,-2173.53,0.00017727,2]
[347110236,1735501869400,-500.0,0.00017727,2]
[347110237,1735501869410,-516.95,0.00017727,2]
[347110238,1735501869419,-500.0,0.00017727,2]
[347110239,1735501869428,-538.76,0.00017727,2]
[347110240,1735501869438,-500.0,0.00017727,2]
[347110241,1735501869448,-7500.0,0.00017727,2]
[347110242,1735501869458,-500.0,0.00017727,2]
[347110243,1735501869468,-500.0,0.00017727,2]
[347110244,1735501869478,-1499.28,0.00017727,2]
[347110245,1735501869487,-500.0,0.00017727,2]
[347110246,1735501869497,-39823.64,0.00017727,2]
[347110247,1735501869506,-500.0,0.00017728,2]
[347110248,1735501869515,-500.0,0.00017728,2]
[347110249,1735501869525,-376.42,0.00017728,2]
[347110250,1735501869534,-383.58,0.00017728,2]
[347110251,1735501869543,-500.0,0.00017728,2]
[347110252,1735501869553,-240.63,0.00017728,2]
[347110253,1735501869562,-316.74,0.00017728,2]
[347110254,1735501869572,-412.84,0.00017728,2]
[347110255,1735501869582,-500.0,0.00017728,2]
[347110256,1735501869591,-500.0,0.00017728,2]
[347110257,1735501869601,-500.0,0.00017728,2]
[347110258,1735501869613,-500.0,0.00017728,2]
[347110259,1735501869623,-500.0,0.00017728,2]
[347110260,1735501869633,-275.76,0.00017728,2]
[347110261,1735501869642,-500.0,0.00017728,2]
[347110262,1735501869652,-225.95,0.00017728,2]
[347110263,1735501869662,-500.0,0.00017728,2]
[347110264,1735501869671,-500.0,0.00017728,2]
[347110265,1735501869682,-500.0,0.00017728,2]
[347110266,1735501869692,-500.0,0.00017728,2]
[347110267,1735501869702,-500.0,0.00017728,2]
[347110268,1735501869711,-500.0,0.00017728,2]
[347110269,1735501869721,-285.28,0.00017728,2]
[347110270,1735501869731,-1311.98,0.00017728,2]
[347110271,1735501869741,-372.0,0.00017728,2]
[347110272,1735501869751,-500.0,0.00017728,2]
[347110273,1735501869761,-500.0,0.00017728,2]
[347110274,1735501869771,-194.70991374,0.00017728,2]
[347110275,1735501869780,-424.81,0.00017728,2]
[347110276,1735501869790,-621.57,0.00017728,2]
[347110277,1735501869799,-429.3,0.00017728,2]
[347110278,1735501869809,-500.0,0.00017728,2]
[347110279,1735501869818,-500.0,0.00017728,2]
[347110280,1735501869827,-1093.12,0.00017728,2]
[347110281,1735501869837,-500.0,0.00017728,2]
[347110282,1735501869846,-500.0,0.00017728,2]
[347110283,1735501869856,-500.0,0.0001773,2]
[347110284,1735501869865,-500.0,0.0001773,2]
[347110285,1735501869874,-500.0,0.0001773,2]
[347110286,1735501869884,-609.96,0.0001773,2]
[347110287,1735501869893,-1966.04,0.0001773,2]
[347110288,1735501869903,-500.0,0.0001773,2]
[347110289,1735501869913,-500.0,0.0001773,2]
[347110290,1735501869922,-2075.34,0.0001773,2]
[347110291,1735501869931,-500.0,0.0001773,2]